Cogmind - Beta 13 @@@ ROGUE MODE // 2024.05.14 @ 20:14:40 Player: CanadianCogs Result: Destroyed by G-47 Trooper with Particle Gun Performance ------------- Evolutions (2) 1000 Regions Visited (4) 800 Robots Destroyed (38) 190 Value Destroyed (725) 725 Prototype IDs (0) 0 Alien Tech Used (0) 0 Bonus (-119) -119 TOTAL SCORE: 2596 Bonus ------- High Alert Combat Kills 16 Follower Combat Kills 30 Friendly Fire -165 Cogmind --------- Core Integrity 0/550 Matter 300/300 Energy 100/100 System Corruption 2% Temperature Cool (18) Movement Core (50) Location -8/Materials Parts ------- > --- POWER (1) -------- (None) > --- PROPULSION (4) --- (None) > --- UTILITY (4) ------ (None) > --- WEAPON (2) ------- (None) > --- INVENTORY (5) ---- (None) Peak State ------------ > --- POWER ------------ Ion Engine > --- PROPULSION ------- Aluminum Leg Aluminum Leg > --- UTILITY ---------- Improved Terrain Scanner Seismic Detector > --- WEAPON ----------- Assault Rifle Assault Rifle > --- INVENTORY -------- (None) [Rating: 9] Favorites ----------- Power Ion Engine Engine Ion Engine Propulsion Light Treads Treads Light Treads Leg Aluminum Leg Utility Seismic Detector Device Seismic Detector Weapon Grenade Launcher Energy Gun EM Pulse Gun Ballistic Gun Assault Rifle Launcher Grenade Launcher Special Weapon Mining Laser Special Melee Weapon Datajack Build | -11 -10 -10 -10 -8 ------- Run | Yrd Mat Min Sub Mat Slots Evolved 4 | . . . . 4 Power . | . . . . . Propulsion 2 | . . . . 2 Utility 2 | . . . . 2 Weapon . | . . . . . Parts Attached 29 | 7 12 3 3 4 Power 2 | 1 1 . . . Engine 2 | 1 1 . . . Core . | . . . . . Reactor . | . . . . . Propulsion 7 | 2 3 . . 2 Treads 4 | . 2 . . 2 Leg 3 | 2 1 . . . Wheel . | . . . . . Hover . | . . . . . Flight . | . . . . . Utility 4 | 2 1 . 1 . Device 4 | 2 1 . 1 . Storage . | . . . . . Processor . | . . . . . Hackware . | . . . . . Protection . | . . . . . Artifact . | . . . . . Weapon 16 | 2 7 3 2 2 Energy Gun 1 | . . . . 1 Energy Cannon . | . . . . . Ballistic Gun 2 | 2 . . . . Ballistic Cannon . | . . . . . Launcher 8 | . 5 2 1 . Special Weapon 4 | . 2 1 1 . Impact Weapon . | . . . . . Slashing Weapon . | . . . . . Piercing Weapon . | . . . . . Special Melee Weapon 1 | . . . . 1 Unidentified Prototypes . | . . . . . Parts Lost 15 | . 2 3 . 10 Power 1 | . . 1 . . Propulsion 4 | . . . . 4 Utility 4 | . 1 1 . 2 Weapon 6 | . 1 1 . 4 Highest Loss Streak 10 | . 2 3 . 10 To Critical Strikes . | . . . . . Average Slot Usage (%) 79 | . 96 73 71 52 Engine 5 | . 14 1 . . Treads 18 | . 2 28 28 24 Leg 8 | . 24 . . . Device 19 | . 26 15 14 16 Ballistic Gun 2 | . 7 . . . Launcher 20 | . 17 24 22 11 Special Weapon 2 | . 1 3 5 . Naked Turns 18 | . . . . 18 Heaviest Build 13 | 11 13 9 9 9 Greatest Support 80 | 20 40 40 40 80 Greatest Overweight (x) . | . . . . . Average Overweight (x) . | . . . . . Largest Inventory Capacity 5 | 5 5 5 5 5 Average Capacity 5 | 5 5 5 5 5 Most Carried 5 | 5 5 5 5 3 Average Carried 3 | 1 2 4 4 1 Final Capacity 5 | 5 5 5 5 5 Final Carried 5 | . 5 5 4 . Class Distribution -------------------- 100% | Mutant Dominant Class ---------------- Mutant | -10/Materials Mutant | -10/Mines Mutant | -10/Subcaves Mutant | -8/Materials Resources | -11 -10 -10 -10 -8 ----------- Run | Yrd Mat Min Sub Mat Matter Collected 915 | 250 393 75 168 29 Remotely . | . . . . . Salvage Created 640 | 59 470 25 36 50 Parts 49 | 8 24 11 3 3 Haulers Intercepted 1 | . 1 . . . Recyclers Shooed 3 | . 2 1 . . Parts Field Recycled . | . . . . . Retrieved Matter . | . . . . . Parts Self-Destructed 7 | . . . 7 . Prevented . | . . . . . Kills | -11 -10 -10 -10 -8 ------- Run | Yrd Mat Min Sub Mat Combat Hostiles Destroyed 29 | . 14 9 2 4 Melee 1 | . . 1 . . Guns 2 | . 2 . . . Cannons 2 | . . 2 . . AOE 24 | . 12 6 2 4 Classes Destroyed 10 | 1 7 . 2 . Worker 1 | . 1 . . . Builder 1 | . 1 . . . Tunneler 3 | 3 . . . . Hauler 1 | . 1 . . . Recycler 1 | . 1 . . . Watcher 1 | . 1 . . . Swarmer 16 | . 3 9 . 4 Grunt 12 | . 11 . . 1 Cobbler 1 | . . . 1 . Subdweller 2 | . . . 2 . Best Kill Streak 5 | 3 5 5 2 4 Combat Bots Only 5 | . 5 5 2 4 Max Kills in Single Turn 3 | 2 3 3 1 2 Gunslinging . | . . . . . Exploded 3 | . 3 3 1 2 Melee 1 | . . 1 . . Uniques/NPCs Destroyed . | . . . . . Combat | -11 -10 -10 -10 -8 -------- Run | Yrd Mat Min Sub Mat Hostile Shots Fired 202 | . 53 63 3 83 Missed 50 | . 15 13 1 21 Damage Taken 2068 | . 530 388 152 998 Core 746 | . 84 88 14 560 Absorbed by Shields . | . . . . . Core Remaining (%) 62 | 100 . . 25 . Volleys Fired 65 | 3 33 14 6 9 Largest 2 | 2 2 2 2 2 Hottest 100 | 40 60 100 100 60 Shots Fired 103 | 6 63 15 9 10 Gun 45 | 6 38 . . 1 Cannon . | . . . . . Launcher 44 | . 25 3 7 9 Special 14 | . . 12 2 . Kinetic 44 | 6 38 . . . Thermal 14 | . . 12 2 . Explosive 44 | . 25 3 7 9 Electromagnetic 1 | . . . . 1 Robot Hit Streak 13 | 5 13 2 10 11 Robot Miss Streak 6 | . 3 6 . 1 Penetration Max . | . . . . . Secondary Targets . | . . . . . Shots Hit Robots 62 | 5 36 6 8 7 Core Hits 55 | 3 30 8 5 9 Critical Kills . | . . . . . Critical Parts Destroyed 1 | . 1 . . . Critical Strikes 1 | . 1 . . . Destroy 1 | . 1 . . . Melee Attacks . | . . . . . Impact . | . . . . . Slashing . | . . . . . Piercing . | . . . . . Sneak Attacks . | . . . . . Combat Hostiles . | . . . . . Follow-up Attacks . | . . . . . Damage Inflicted 2668 | 77 1346 380 345 520 Guns 386 | 77 299 . . 10 Cannons . | . . . . . Explosions 2077 | . 1047 283 297 450 Melee . | . . . . . Ramming 61 | . . 1 . 60 Kinetic 376 | 77 299 . . . Thermal 144 | . . 96 48 . Explosive 2077 | . 1047 283 297 450 Electromagnetic 10 | . . . . 10 Impact . | . . . . . Slashing . | . . . . . Piercing . | . . . . . Highest Corruption 3 | . 3 3 3 2 Average Corruption 2 | . 2 3 3 2 Corruption Purged . | . . . . . Corruption Blocked . | . . . . . Effects 26 | . 7 12 7 . Message Errors 5 | . 2 3 . . Matter Fused 6 | . . 3 3 . Heat Flow Errors 5 | . 1 4 . . Energy Discharges 4 | . 2 1 1 . Parts Fused 1 | . . . 1 . Data Loss (minor) 3 | . 1 . 2 . Data Loss (major) 1 | . 1 . . . Alerts 1 | . . 1 . . Overload Shots . | . . . . . Overflow Damage 101 | . 41 4 . 56 Projectiles 4 | . . 4 . . Explosions 97 | . 41 . . 56 Melee . | . . . . . Knockbacks . | . . . . . Impact . | . . . . . Kinetic . | . . . . . Secondary . | . . . . . Self-Inflicted Damage 353 | . 126 . 112 115 Shots 18 | . 8 . 6 4 Rammed 32 | . . 2 . 30 Targets Rammed 33 | . . 3 . 30 Kicked . | . . . . . Crushed 1 | . . 1 . . Highest Temperature 250 | . 173 250 . 13 Average Temperature 75 | . 31 98 . 13 Received Heat Transfer 621 | . 204 . 12 405 Siege Activations . | . . . . . Robots Corrupted . | . . . . . Combat Hostiles . | . . . . . Parts Fried . | . . . . . Impact Corruptions . | . . . . . Robots Melted . | . . . . . Combat Hostiles . | . . . . . Parts Melted . | . . . . . Heat Transferred 300 | . . 200 100 . Parts Sabotaged . | . . . . . Parts Stolen . | . . . . . Parts Stripped . | . . . . . Power Chain Reactions . | . . . . . Alert | -11 -10 -10 -10 -8 ------- Run | Yrd Mat Min Sub Mat Peak Influence 468 | 15 468 306 . 137 Initial 182 | . 9 182 . . Average 191 | 6 219 221 . 52 Maximum Alert Level 2 | . 2 1 . . Low Security (%) 49 | 100 43 36 . 100 Level 1 42 | . 35 63 . . Level 2 8 | . 21 . . . Level 3 . | . . . . . Level 4 . | . . . . . Level 5 . | . . . . . High Security . | . . . . . Max Security . | . . . . . Squads Dispatched 6 | . 5 . . 1 Investigation 6 | . 5 . . 1 Extermination . | . . . . . Reinforcement . | . . . . . Assault . | . . . . . Garrison . | . . . . . Intercept . | . . . . . Searches Triggered . | . . . . . Construction Impeded . | . . . . . Haulers Reinforced . | . . . . . Active Scanning Responses . | . . . . . Cargo Convoy Interrupts . | . . . . . Stealth | -11 -10 -10 -10 -8 --------- Run | Yrd Mat Min Sub Mat Distress Signals 1 | . 1 . . . Communications Jammed . | . . . . . Distress Signals . | . . . . . Times Spotted 42 | . 20 9 3 10 Peak Tracking Total 5 | . 5 3 1 5 Tactical Retreats 2 | . 2 . . . Traps | -11 -10 -10 -10 -8 ------- Run | Yrd Mat Min Sub Mat Traps Triggered 3 | . 3 . . . Indirectly . | . . . . . Trap Hack Attempts . | . . . . . Triggered . | . . . . . Disarmed . | . . . . . Reprogrammed . | . . . . . Reused . | . . . . . Traps Extracted . | . . . . . Installed . | . . . . . Triggered . | . . . . . Machines | -11 -10 -10 -10 -8 ---------- Run | Yrd Mat Min Sub Mat Machines Disabled 6 | . 4 1 . 1 Max in Single Turn 2 | . 2 1 . 1 Machines Repaired . | . . . . . Machines Dismantled . | . . . . . Machines Sabotaged . | . . . . . Overloaded Fab Kills . | . . . . . Hacking | -11 -10 -10 -10 -8 --------- Run | Yrd Mat Min Sub Mat Machines Accessed 10 | . 8 . . 2 Terminals 7 | . 6 . . 1 Fabricators . | . . . . . Repair Stations . | . . . . . Recycling Units 3 | . 2 . . 1 Scanalyzers . | . . . . . Garrison Access . | . . . . . Total Hacks 29 | . 22 . . 7 Successful 14 | . 9 . . 5 Failed 14 | . 12 . . 2 Catastrophic 2 | . 2 . . . Database Lockouts 1 | . 1 . . . Manual 14 | . 11 . . 3 Terminals 20 | . 16 . . 4 Fabricators . | . . . . . Repair Stations . | . . . . . Recycling Units 9 | . 6 . . 3 Scanalyzers . | . . . . . Garrison Access . | . . . . . Terminal Hacks 5 | . 4 . . 1 Record 1 | . . . . 1 Robot Schematic 1 | . 1 . . . Alert Level 1 | . 1 . . . Registered Components 1 | . 1 . . . Zone Layout 1 | . 1 . . . Fabricator Hacks . | . . . . . Repair Station Hacks . | . . . . . Recycling Unit Hacks 7 | . 4 . . 3 Process 1 | . . . . 1 Report Inventory 2 | . 2 . . . Retrieve Matter 2 | . . . . 2 Retrieve Components 2 | . 2 . . . Scanalyzer . | . . . . . Garrison Access Hacks . | . . . . . Unauthorized Hacks 2 | . 1 . . 1 Terminals 1 | . . . . 1 Assimilate 1 | . . . . 1 Fabricators . | . . . . . Repair Stations . | . . . . . Recycling Units 1 | . 1 . . . Tunnel 1 | . 1 . . . Scanalyzers . | . . . . . Garrison Access . | . . . . . Data Cores Recovered . | . . . . . Used . | . . . . . Hacking Detections 10 | . 8 . . 2 Full Trace Events 8 | . 7 . . 1 Feedback Events . | . . . . . Feedback Blocked . | . . . . . Robot Schematics Acquired 1 | . 1 . . . Robots Built . | . . . . . Authchips . | . . . . . Time . | . . . . . Total Robot Build Rating . | . . . . . Part Schematics Acquired . | . . . . . Parts Built . | . . . . . Authchips . | . . . . . Time . | . . . . . Total Part Build Rating . | . . . . . Parts Repaired . | . . . . . Time . | . . . . . Parts Recycled . | . . . . . Recycled Matter 87 | . . . . 87 Retrieved Matter 87 | . . . . 87 Retrieved Components 8 | . 8 . . . Parts Scanalyzed . | . . . . . Part Schematics Acquired . | . . . . . Parts Damaged . | . . . . . Bothacking | -11 -10 -10 -10 -8 ------------ Run | Yrd Mat Min Sub Mat Used RIF Installer . | . . . . . Robots Hacked . | . . . . . Non-combat . | . . . . . Combat . | . . . . . Robot Hacks Applied . | . . . . . Relay Couplers Released . | . . . . . Fabnet Peak Effective % . | . . . . . Robots Rewired . | . . . . . Allies Hacked . | . . . . . Hacks Repelled . | . . . . . Allies | -11 -10 -10 -10 -8 -------- Run | Yrd Mat Min Sub Mat Total Allies 4 | . . 3 . 1 Largest Group 3 | . . 3 3 1 Highest-Rated Group 40 | . . 40 40 10 Highest-Rated Ally 16 | . . 16 16 10 Total Orders . | . . . . . Ally Attacks 14 | . . . 14 . Total Damage 170 | . . . 170 . Kills 1 | . . . 1 . Allies Corrupted . | . . . . . Allies Melted 1 | . . 1 . . Intel | -11 -10 -10 -10 -8 ------- Run | Yrd Mat Min Sub Mat Robot Analysis Total . | . . . . . Derelict Logs Recovered 2 | . . 2 . . Drone Launches . | . . . . . Drone Recoveries . | . . . . . Exploration | -11 -10 -10 -10 -8 ------------- Run | Yrd Mat Min Sub Mat Turns Passed 2187 | 112 737 747 432 159 Spaces Moved 1218 | 80 463 390 247 38 Core 34 | 33 . . . 1 Treads 711 | . 37 390 247 37 Legs 473 | 47 426 . . . Wheels . | . . . . . Hover . | . . . . . Flight . | . . . . . Fastest Speed 50 | 50 120 160 160 50 Average Speed 141 | 91 123 160 160 157 Slowest Speed 160 | 120 160 160 160 160 Overloaded Moves . | . . . . . Propulsion Burnouts . | . . . . . Robots Hopped . | . . . . . Cave-ins Triggered . | . . . . . Exploration Rate (%) 28 | 5 63 59 10 5 Regions Visited 4 Branch Regions 2 Pre-discovered Areas 2 | . 1 1 . . Known Exits Taken . | . . . . . Unknown Exits Taken 4 | 1 1 1 1 . Scrap Searched 3 | . . 1 2 . Spaces Dug . | . . . . . Terrain Destroyed 256 | . 121 29 31 75 Melee . | . . . . . Projectile 4 | . . 4 . . AOE 252 | . 121 25 31 75 Terrain Rammed . | . . . . . Walls Destroyed . | . . . . . Machines Disabled . | . . . . . Actions | -11 -10 -10 -10 -8 --------- Run | Yrd Mat Min Sub Mat Total 1543 | 113 568 471 270 121 Wait 170 | 17 38 61 14 40 Move 1214 | 79 462 389 246 38 Hop . | . . . . . Pick Up 22 | 7 13 1 1 . Fast Attach 3 | . 3 . . . Attach 16 | 7 3 1 1 4 Detach . | . . . . . Swap 10 | . 6 2 2 . Drop 10 | . 10 . . . Fire 65 | 3 33 14 6 9 Melee . | . . . . . Ram 20 | . . . . 20 Kick . | . . . . . Crush 13 | . . 3 . 10 Escape Stasis . | . . . . . Rewire . | . . . . . Trap . | . . . . . Miscellaneous . | . . . . . Route ------- -11/Scrapyard -10/Materials (discovered 2 exits: [*Mat] / [*Min]) -10/Mines (discovered 2 exits: [*Mat] / [*Sub]) -10/Subcaves -8/Materials (discovered 1 exit: Fac) History --------- Turn | Location | Event 8 | -11/Scrapyard | Discovered new exit (range 14) 113 | -11/Scrapyard | Entered Materials 304 | -10/Materials | Build established: Mutant 450 | -10/Materials | Discovered new exit (range 12) 615 | -10/Materials | Central database locked down 735 | -10/Materials | Discovered new exit (range 15) 850 | -10/Materials | Entered Mines 895 | -10/Mines | Core integrity fell below 50% 949 | -10/Mines | Lost 3 parts (1p1u1w) 1009 | -10/Mines | Learned Materials terminal intel 1017 | -10/Mines | Discovered new exit (range 10) 1155 | -10/Mines | Assisted by bots powering up and referring to "LRC-V3" 1460 | -10/Mines | Learned location of 1 exit from Materials 1565 | -10/Mines | Discovered new exit (range 13) 1597 | -10/Mines | Entered Subcaves 1597 | -10/Subcaves | Accompanied by 3 allies 1662 | -10/Subcaves | A swath of the cavern ceiling suddenly collapsed 1929 | -10/Subcaves | Discovered new exit (range 13) 2029 | -10/Subcaves | Entered Materials 2029 | -8/Materials | Accompanied by 1 ally 2029 | -8/Materials | Evolved 4 slots: Propulsion x2, Utility x2 2030 | -8/Materials | Identified exit to Factory 2031 | -8/Materials | Loaded intel: 12 terminal locations 2175 | -8/Materials | Core integrity fell below 50% 2185 | -8/Materials | Core integrity fell below 20% 2188 | -8/Materials | Destroyed by G-47 Trooper with Particle Gun Last Messages --------------- 02161_ Y-45 Defender suffers critical hit (Burn). 02162_ Slammed into Y-45 Defender. 02167_ Lgt. Treads destroyed. 02168_ Y-45 Defender suffers critical hit (Burn). 02169_ Slammed into Y-45 Defender. 02169_ K-01 Serf collects debris. 02170_ Slammed into Y-45 Defender. 02170_ Sub. Optics destroyed. 02171_ Slammed into Y-45 Defender. 02175_ K-01 Serf collects debris. 02176_ Slammed into Y-45 Defender. 02178_ The unstable cave ceiling collapses. 02178_ Slammed into Y-45 Defender. 02178_ K-01 Serf collects debris. 02179_ Slammed into Y-45 Defender. 02185_ Destabilizing: System corrupted (+2). 02186_ K-01 Serf collects debris. 02186_ Slammed into Y-45 Defender. 02187_ Y-45 Defender heat spikes uncontrollably. 02187_ Slammed into Y-45 Defender. Map ----- +----------------------------------------------------+ | | | | | | | | | | | | | | | | | | | | | | | | | | | | | | | | | | | | | | | ??????????????????????????????????????? | | ??????????????????????????????????????? | | ??????????????????????????????????????? | | ######??????###?##????????????????????? | | # ###??### ## #####????????????????? | | #"" ####%%%%Y ##????????????????? | | #"Y ## % @%#####################+# | | #"" # g%g% # | | # g%% # | | # *% #### %% # | | # = ## #############+##### | | #[ ## ####????????????????? | | # # ######## # ??????????????? | | ###### #??????# # #?????????????? | | ?????# #??????# #k #?????????????? | | ?????# #??????+ / #?????????????? | | ?????# #??????# # #?????????????? | | ?????# #??????# #########?????????????? | | ?????# #??????# u??????????"""T"""????? | | ?????# #??????# #?????????????????????? | | ?????+ #??????# #?????????????????????? | | ?????? ???????# #?????????????????????? | | ?????? ???????# #?????????????????????? | | ?????? ???????? ??????????????????????? | | ??????#???????? ??????????????????????? | | ??????????????? ??????????????????????? | | ??????????????? ??????????????????????? | | ??????????????? ??????????????????????? | | ??????????????? ??????????????????????? | | ??????????????? ??????????????????????? | | ??????????????? ??????????????????????? | +----------------------------------------------------+ Best States ------------- Heat Dissipation 31 Energy Generation 10 Energy Capacity 250 Matter Stores 300 Matter Capacity 300 Sight Range 21 Robot Scan Range 14 Terrain Scan Range 16 Terrain Scan Density 10 Evasion (%) 55 Recoil Reduction 4 Item Schematics ----------------- None Robot Schematics ------------------ G-34 Mercenary | -10/Materials | Hacked Fabricated ------------ Nothing Alien Tech Used ----------------- None Achievements -------------- None Challenges ------------ None Game ------ Seed AdvancedSegregatorLance Manual? 0 Play Time 00:31:24 Cumulative 26.4 hours Start 2024.05.14 @ 18:28:27 End 2024.05.14 @ 20:14:40 Sessions 3 Manual Loads 0 Difficulty Rogue Special Mode None Game No. 42 Rogue 42 Adventurer 0 Explorer 0 Win Type - Total 0 Types 0/0/0/0/0/0/0/0/0 Lore% 18 Gallery% 26 Achievement% 24 Wizard Run 0 Options --------- Layout 0 ASCII 0 Keyboard 0 Movement Mouse Keybinds 0 Fullscreen 2 Font 18/SmallcapsGlow Map View 38x25 Zoom Use 97% Tactical HUD 1 Map Filters NONE Filters NONE Steam 1 RUN: fa09bf6b-7ee9-4b6a-8381-46d0ead024a8